bitfinex-derivatives/quotes_ETHF0:USTF0_20250616
["timestamp","ask_amount","ask_price","bid_price","bid_amount"]
[1750056434400,0.76379,2618.1,2617.9,44.77163]
[1750056434795,0.76382,2618.0,2617.9,44.0078]
[1750056435004,0.76382,2618.0,2617.9,44.77165]
[1750056435303,0.76382,2618.0,2617.9,44.0078]
[1750056435905,6.156,2618.3,2617.9,44.0078]
[1750056435906,0.76381,2618.1,2617.9,44.0078]
[1750056436106,6.156,2618.3,2618.0,0.76382]
[1750056436300,0.76379,2618.1,2618.0,0.76382]
[1750056436500,8.15585,2618.3,2618.1,0.76379]
[1750056436805,0.76376,2618.2,2618.0,0.7638]
[1750056437107,0.76376,2618.2,2618.1,0.76379]
[1750056437303,3.21353493,2618.4,2618.3,0.76373]
[1750056437602,3.50381195,2619.2,2618.4,1.90926]
[1750056437795,6.8196,2619.4,2618.7,3.2078]
[1750056437997,0.76352,2619.1,2618.9,0.76354]
[1750056438204,2.08296,2619.3,2618.7,5.1168]
[1750056438401,1.32523493,2619.3,2619.0,3.2078]
[1750056438598,0.7635,2619.1,2619.0,3.2078]
[1750056439399,6.153,2619.6,2619.0,8.2078]
[1750056439602,3.97109,2619.9,2619.6,0.76334]
[1750056439802,0.76314,2620.4,2620.0,0.76322]
[1750056440001,4.4853271,2620.6,2620.3,3.2078]
[1750056440302,5.2484471,2620.4,2620.3,3.2078]
[1750056440507,0.76312,2620.4,2620.3,3.2078]
[1750056440895,2.01282,2620.4,2620.3,3.2078]
[1750056441098,8.16582,2620.4,2620.3,3.2078]
[1750056441299,1.2497,2620.4,2620.3,3.2078]
[1750056441504,0.6267,2620.5,2620.3,3.2078]
[1750056441705,0.00572377,2620.7,2620.3,3.2078]
[1750056441908,0.00572377,2620.7,2620.2,3.21352377]
[1750056442208,0.76313,2620.4,2620.2,3.21352377]
[1750056442510,0.7631,2620.5,2620.2,3.21352377]
[1750056442709,0.76307,2620.6,2620.2,3.21352377]
[1750056443003,0.76306,2620.6,2620.5,3.2078]
[1750056443705,0.76306,2620.6,2620.5,3.09838909]
[1750056444199,0.00572377,2620.7,2620.2,3.21352377]
[1750056444601,0.76315,2620.3,2620.2,3.21352377]
[1750056445102,0.00572377,2620.7,2620.3,0.76314]
[1750056445302,0.76315,2620.3,2620.2,3.21352377]
[1750056445911,0.76314,2620.4,2620.2,3.21352377]
[1750056446204,6.15572377,2620.7,2620.2,3.97669377]
[1750056446401,0.00572377,2620.7,2620.5,3.2078]
[1750056446601,0.76306,2620.6,2620.5,3.2078]
[1750056446803,0.76877377,2620.7,2620.5,3.2078]
[1750056447004,0.76877377,2620.7,2620.5,3.97088]
[1750056447205,0.76306,2620.6,2620.5,3.2078]
[1750056447400,0.00572377,2620.7,2620.5,3.2078]
[1750056447606,0.00572377,2620.7,2620.6,0.76306]
[1750056448208,0.76306,2620.6,2620.5,3.2078]
[1750056449114,2.01616,2620.6,2620.5,3.2078]
[1750056449709,0.00572377,2620.7,2620.5,3.2078]
[1750056449908,0.00572377,2620.7,2620.5,3.97087]
[1750056450215,0.76306,2620.6,2620.5,3.2078]
[1750056451916,2.02286,2620.6,2620.5,3.2078]
[1750056452921,0.76315,2620.3,2620.2,3.21352377]
[1750056453414,0.76315,2620.3,2620.2,3.97670377]
[1750056453607,0.76315,2620.3,2620.2,3.21352377]
[1750056456018,0.76315,2620.3,2620.2,3.09858496]
[1750056456520,0.76324,2620.0,2619.9,3.97106]
[1750056456720,0.76324,2620.0,2619.9,3.2078]
[1750056457221,0.76322,2620.1,2619.9,3.2078]
[1750056457519,7.03519,2620.2,2620.1,0.76319]
[1750056457719,7.03518,2620.2,2620.1,0.76319]
[1750056458020,0.76324,2620.0,2619.9,3.2078]
[1750056460129,1.2879,2620.1,2619.9,3.2078]
[1750056460319,0.76324,2620.0,2619.9,3.2078]
[1750056462527,1.40684,2620.0,2619.9,3.2078]
[1750056462715,1.40684,2620.0,2619.7,40.80572377]
[1750056462716,0.76329,2619.8,2619.7,40.80572377]
[1750056463323,0.76332,2619.7,2619.6,3.2078]
[1750056463525,0.76332,2619.7,2618.8,3.02364277]
[1750056463526,0.76346,2619.3,2619.2,3.2078]
[1750056463831,0.76346,2619.3,2619.2,0.76347]
[1750056464123,6.273,2619.4,2618.9,3.2078]
[1750056464324,0.76353,2619.0,2618.9,3.10359804]
[1750056466928,0.76353,2619.0,2618.5,41.4375]
[1750056466929,0.76364,2618.6,2618.5,3.2078]
[1750056467228,0.76364,2618.6,2618.5,3.97146]
[1750056467423,0.76364,2618.6,2618.5,44.0078]
[1750056467822,7.03664,2618.6,2618.5,40.8]
[1750056468026,0.76368,2618.5,2618.3,0.00572377]
[1750056468228,0.76368,2618.5,2618.3,0.76944377]
[1750056468427,0.7637,2618.4,2618.3,0.00572377]
[1750056471029,1.90932,2618.4,2617.8,3.2078]
[1750056471231,1.2724,2618.3,2617.8,3.97166]
[1750056471419,0.678,2618.2,2617.8,3.2078]
[1750056471731,0.76382,2618.0,2617.9,0.76383]
[1750056472531,0.76382,2618.0,2617.8,3.97166]
[1750056472731,0.76382,2618.0,2617.9,0.76385]
[1750056472933,0.76382,2618.0,2617.8,3.97166]
[1750056473232,6.275,2618.0,2617.9,0.76385]
[1750056473428,6.275,2618.0,2617.8,3.2078]
[1750056473429,0.76385,2617.9,2617.8,3.2078]
[1750056473626,0.76388,2617.8,2617.7,0.76962377]
[1750056473831,0.76388,2617.8,2617.7,0.00572377]
[1750056474534,0.00572377,2618.0,2617.7,0.00572377]
[1750056474730,6.275,2617.9,2617.8,0.76385]
[1750056475325,7.03885,2617.9,2617.8,0.76385]
[1750056475631,7.03885,2617.9,2617.7,0.76960377]
[1750056475821,0.76388,2617.8,2617.7,0.76960377]
[1750056476024,0.76388,2617.8,2617.7,0.00572377]
[1750056476427,0.76393,2617.6,2617.5,3.2078]
[1750056477029,0.76392,2617.7,2617.5,3.2078]
[1750056477428,1.3493,2617.8,2617.6,0.76392]
[1750056477632,0.76391,2617.7,2617.6,0.76392]
[1750056477826,0.76391,2617.7,2617.5,3.2078]
[1750056478138,2.1132,2617.8,2617.6,0.76392]
[1750056478331,0.76955377,2618.0,2617.9,0.76385]
[1750056478532,7.00855377,2618.0,2617.9,0.76385]
[1750056478832,6.24472377,2618.0,2617.9,0.76385]
[1750056479229,7.00854377,2618.0,2617.9,0.76385]
[1750056479438,0.76954377,2618.0,2617.9,0.76385]
[1750056479734,7.00854377,2618.0,2617.9,0.76385]
[1750056480239,6.24472377,2618.0,2617.9,0.76385]
[1750056480828,7.00854377,2618.0,2617.9,0.76385]
[1750056481331,6.24472377,2618.0,2617.9,0.76385]
[1750056482935,0.00572377,2618.0,2617.9,0.76385]
[1750056483239,0.00572377,2618.0,2617.9,2.06145]
[1750056487636,6.239,2618.4,2618.3,0.7637]
[1750056487937,29.331,2618.6,2618.5,0.76367]
[1750056488133,7.62395,2619.0,2618.8,0.76356]
[1750056488333,7.62395,2619.0,2618.9,0.76355]
[1750056488540,0.76356,2618.9,2618.7,0.00572377]
[1750056488734,1.38495,2619.0,2618.7,0.00572377]
[1750056489037,1.38495,2619.0,2618.8,0.76356]
[1750056489237,1.38495,2619.0,2618.9,41.56355]
[1750056489434,1.38495,2619.0,2618.9,40.8]
[1750056489735,1.38495,2619.0,2618.9,41.56355]
[1750056489938,1.38495,2619.0,2618.9,0.76355]
[1750056490333,0.76358,2618.8,2618.7,0.00572377]
[1750056490639,0.76374,2618.3,2618.2,0.76375]
[1750056490830,7.00272,2618.4,2618.3,0.76373]
[1750056491431,7.00272,2618.4,2618.2,0.76374]
[1750056491432,0.76374,2618.3,2618.2,0.76374]
[1750056492142,0.76368,2618.5,2618.1,0.6195]
[1750056492443,7.00268,2618.5,2618.3,3.97151]
[1750056492833,0.7637,2618.4,2618.3,3.97151]
[1750056493034,7.00269,2618.5,2618.3,3.97151]
[1750056493235,7.00269,2618.5,2618.4,0.7637]
[1750056493434,1.3387,2618.7,2618.3,3.2078]
[1750056493635,0.76368,2618.5,2618.4,0.76369]
[1750056494036,0.76367,2618.5,2618.4,0.7637]
[1750056494238,0.7637,2618.4,2618.3,3.97151]
[1750056494439,0.7637,2618.4,2618.3,3.2078]
[1750056494839,0.7637,2618.4,2618.3,3.97153]
[1750056495043,0.76369,2618.5,2618.4,0.76369]
[1750056496846,0.7637,2618.4,2618.3,3.97152]
[1750056497540,6.239,2618.6,2618.3,44.0078]
[1750056497742,0.76369,2618.5,2618.4,0.7637]
[1750056497939,0.6685,2618.9,2618.3,45.12249277]
[1750056498142,0.6685,2618.9,2618.7,0.76359]
[1750056498143,7.0026,2618.8,2618.7,0.76359]
[1750056499341,6.239,2618.8,2618.5,1.11469277]
[1750056499538,0.76364,2618.6,2618.5,1.87836277]
[1750056499849,0.7637,2618.4,2618.3,5.08620277]
[1750056500237,9.4994,2618.8,2618.3,5.08620277]
[1750056500238,0.76369,2618.5,2618.4,0.76368]
[1750056500448,0.76369,2618.5,2618.4,0.76367]
[1750056502751,0.76366,2618.6,2618.5,0.76365]
[1750056503046,0.76369,2618.5,2618.4,0.76368]
[1750056504049,0.7637,2618.4,2618.3,45.88619277]
[1750056504347,0.7637,2618.4,2618.3,42.67839277]
[1750056504840,0.76373,2618.3,2618.2,1.87844277]
[1750056505247,0.76371,2618.4,2618.3,0.7637]
[1750056505545,0.76373,2618.3,2618.2,1.87843277]
[1750056507551,0.76373,2618.3,2618.2,1.89454115]
[1750056508053,0.76378,2618.2,2618.1,0.76378]
[1750056508247,0.76378,2618.2,2618.1,1.89458115]
[1750056508248,6.95978,2618.2,2618.1,1.89458115]
[1750056508555,6.196,2618.2,2618.1,0.76378]
[1750056508845,6.196,2618.3,2618.2,0.76376]
[1750056509051,6.196,2618.3,2618.2,1.89456115]
[1750056510151,2.06716,2618.6,2618.5,0.76367]
[1750056510552,8.26316,2618.6,2618.5,0.76367]
[1750056510954,0.76367,2618.5,2618.4,1.89448115]
[1750056511160,5.11666,2619.0,2618.4,1.89448115]
[1750056511161,0.76921377,2619.2,2619.0,0.76352]
[1750056511355,0.7635,2619.1,2618.9,5.10226396]
[1750056511555,0.7635,2619.1,2619.0,40.8]
[1750056511756,0.76353,2619.0,2618.9,1.13092396]
[1750056511955,0.76358,2618.8,2618.7,1.13092396]
[1750056512156,6.95958,2618.8,2618.7,1.89453396]
[1750056512361,6.95958,2618.8,2618.7,1.13092396]
[1750056512558,7.5082,2618.8,2618.7,1.89453396]
[1750056512761,0.6483,2618.9,2618.8,0.76358]
[1750056512962,6.8443,2618.9,2618.8,1.89464863]
[1750056513958,0.6483,2618.9,2618.8,1.89464863]
[1750056514366,0.6483,2618.9,2618.8,5.10244863]
[1750056514869,0.00572377,2619.2,2619.1,0.7635]
[1750056515164,6.20172377,2619.2,2619.1,0.7635]
[1750056515365,6.20172377,2619.2,2619.1,1.89400842]
[1750056516062,0.00572377,2619.2,2619.1,1.89400842]
[1750056516765,0.00572377,2619.2,2619.1,0.7635]
[1750056517168,0.76919377,2619.2,2619.0,1.89401842]
[1750056517462,0.00572377,2619.2,2619.1,0.7635]
[1750056517766,1.30202377,2619.2,2619.1,0.7635]
[1750056518265,8.26049377,2619.2,2619.0,1.89301526]
[1750056518761,0.7635,2619.1,2619.0,1.12950526]
[1750056519162,2.63251,2619.1,2618.9,1.89305526]
[1750056520057,1.869,2619.1,2619.0,0.76353]
[1750056520264,0.6341,2619.1,2619.0,0.76353]
[1750056521060,1.3976,2619.1,2618.9,1.89304526]
[1750056521763,0.6341,2619.1,2619.0,0.76353]
[1750056522371,0.6341,2619.1,2618.9,1.12950526]
[1750056522372,6.96421377,2619.2,2619.1,0.7635]
[1750056523071,6.96420377,2619.2,2619.1,0.7635]
[1750056523768,0.7635,2619.1,2619.0,0.76351]
[1750056523973,6.96420377,2619.2,2619.1,0.7635]
[1750056524568,0.7635,2619.1,2619.0,0.7635]
[1750056524764,6.20072377,2619.2,2619.0,0.7635]
[1750056524969,6.96421377,2619.2,2619.1,0.7635]
[1750056525371,6.20072377,2619.2,2619.1,0.7635]
[1750056525673,6.96419377,2619.2,2619.1,0.7635]
[1750056527574,6.20072377,2619.2,2619.1,0.7635]
[1750056528374,6.20072377,2619.2,2619.1,1.89300526]
[1750056529274,3.2078,2619.8,2619.7,0.76332]
[1750056529480,10.16611,2619.8,2619.7,0.76332]
[1750056529974,0.76333,2619.7,2619.6,0.76333]
[1750056530473,10.16611,2619.8,2619.7,0.76332]
[1750056530976,0.76333,2619.7,2619.6,0.76333]
[1750056531176,10.16612,2619.8,2619.4,1.13385165]
[1750056531679,0.76333,2619.7,2619.6,0.76333]
[1750056531879,0.76335,2619.6,2619.5,0.76336]
[1750056532376,0.76338,2619.5,2619.4,0.00572377]
[1750056533176,2.06878,2619.5,2619.4,0.00572377]
[1750056533675,5.27658,2619.5,2619.4,0.00572377]
[1750056534972,11.42166,2619.5,2619.0,0.76351]
[1750056535178,0.7635,2619.1,2619.0,0.76351]
[1750056535378,6.9575,2619.1,2619.0,0.76351]
[1750056535682,0.76353,2619.0,2618.9,1.39694]
[1750056536177,6.194,2619.1,2618.7,1.12812788]
[1750056536382,6.194,2619.1,2618.6,1.50734456]
[1750056536383,0.76364,2618.6,2618.4,1.12812788]
[1750056536581,6.194,2618.5,2618.4,1.89182788]
[1750056536782,6.194,2618.5,2618.4,0.7637]
[1750056537382,0.7637,2618.4,2618.3,42.57562788]
[1750056537585,0.7637,2618.4,2618.3,1.77562788]
[1750056537775,0.76373,2618.3,2618.2,1.12812788]
[1750056538080,0.76373,2618.3,2617.4,0.76398]
[1750056538081,1.90948,2618.1,2617.4,0.76398]
[1750056538281,6.207,2618.0,2617.8,3.2078]
[1750056538683,6.207,2618.0,2617.9,0.76385]
[1750056539682,6.207,2618.0,2617.9,2.07135]
[1750056540776,6.207,2618.0,2617.8,3.2078]
[1750056540983,6.97084,2618.0,2617.8,3.97166]
[1750056541183,6.207,2618.0,2617.8,3.97166]
[1750056541376,6.207,2618.0,2617.8,3.2078]
[1750056541684,6.207,2618.0,2617.6,2.17854456]
[1750056541685,0.76386,2617.9,2617.6,2.17854456]
[1750056541886,0.76386,2617.9,2617.7,0.7639]
[1750056542086,6.207,2618.0,2617.6,2.17854456]
[1750056542384,6.207,2618.0,2617.6,3.40074456]
[1750056542682,6.97082,2618.0,2617.8,3.2078]
[1750056542875,6.97082,2618.0,2617.8,3.97166]
[1750056543184,6.207,2618.0,2617.9,0.76385]
[1750056543684,6.207,2618.0,2617.9,41.56385]
[1750056544083,6.97082,2618.0,2617.9,40.8]
[1750056544283,6.207,2618.0,2617.9,41.56385]
[1750056544886,6.97082,2618.0,2617.9,40.8]
[1750056545187,6.207,2618.0,2617.5,4.61925]
[1750056545387,0.76391,2617.7,2617.5,4.61924]
[1750056545681,0.76391,2617.7,2617.6,40.8]
[1750056546292,0.76393,2617.6,2617.5,3.8553]
[1750056546790,0.76393,2617.6,2617.5,44.6553]
[1750056547682,0.76393,2617.6,2617.5,45.41926]
[1750056548084,0.76393,2617.6,2617.5,44.6553]
[1750056548587,6.209,2617.7,2617.6,0.76393]
[1750056548793,6.9729,2617.7,2617.6,0.76393]
[1750056549094,6.209,2617.7,2617.5,44.6553]
[1750056549293,6.97292,2617.7,2617.6,0.76393]
[1750056549488,6.97292,2617.7,2617.5,44.6553]
[1750056549793,29.84,2617.9,2617.5,44.6553]
[1750056550089,30.60387,2617.9,2617.7,0.76389]
[1750056550277,0.76383,2618.0,2617.6,1.2448]
[1750056550478,29.845,2617.9,2617.8,0.76388]
[1750056550687,30.60885,2617.9,2617.7,0.76388]
[1750056550884,30.60885,2617.9,2617.6,1.2448]
[1750056551089,30.60885,2617.9,2617.8,0.76388]
[1750056551789,0.76388,2617.8,2617.7,0.76388]
[1750056552287,30.60887,2617.9,2617.6,1.2448]
[1750056552493,30.60887,2617.9,2617.8,3.2078]
[1750056552879,0.76393,2617.6,2617.5,3.8553]
[1750056553191,24.38893,2617.6,2617.5,3.2078]
[1750056555085,23.625,2617.6,2617.5,3.97176]
[1750056555284,24.38893,2617.6,2617.5,3.97176]
[1750056555890,24.38893,2617.6,2617.5,3.2078]
[1750056557393,23.625,2617.6,2617.5,3.97176]
[1750056557586,6.209,2617.9,2617.5,3.2078]
[1750056557785,23.62,2617.8,2617.7,0.76389]
[1750056558387,24.38388,2617.8,2617.7,0.76389]
[1750056558890,23.62,2617.8,2617.7,0.76389]
[1750056559085,29.822,2617.8,2617.7,0.7639]
[1750056559292,0.00572377,2618.5,2617.9,1.90962]
[1750056559589,0.76371,2618.4,2618.2,3.2078]
[1750056559784,0.76941377,2618.5,2618.3,40.8]
[1750056560096,0.00572377,2618.5,2618.4,0.7637]
[1750056560785,0.00572377,2618.5,2618.4,1.4404]
[1750056561181,0.00572377,2618.5,2618.4,0.6767]
[1750056561182,0.76939377,2618.5,2618.4,0.6767]
[1750056561382,0.00572377,2618.5,2618.4,1.4404]
[1750056561985,0.76939377,2618.5,2618.4,1.4404]
[1750056562181,0.00572377,2618.5,2618.4,1.4404]
[1750056562379,0.76939377,2618.5,2618.4,1.4404]
[1750056562593,0.00572377,2618.5,2618.4,1.4404]
[1750056563695,0.76939377,2618.5,2618.4,0.6767]
[1750056563891,0.76939377,2618.5,2618.4,1.4404]
[1750056564192,0.7637,2618.4,2618.3,40.8]
[1750056564388,0.76379,2618.1,2618.0,0.6555]
[1750056564591,0.63902377,2618.5,2617.9,0.76383]
[1750056564592,0.76382,2618.0,2617.9,0.76383]
[1750056564785,0.76381,2618.1,2617.8,1.50734456]
[1750056565097,0.63902377,2618.5,2617.8,1.50734456]
[1750056565098,0.76372,2618.4,2617.9,3.2078]
[1750056565397,1.40271377,2618.5,2618.3,0.76371]
[1750056565586,29.844,2618.4,2618.3,0.76371]
[1750056565787,30.6077,2618.4,2618.3,0.76371]
[1750056565993,30.6077,2618.4,2618.2,3.2078]
[1750056565994,0.7637,2618.4,2618.2,3.97154]
[1750056566194,30.6077,2618.4,2618.3,0.76373]
[1750056566396,30.6077,2618.4,2618.2,3.97154]
[1750056566598,30.6077,2618.4,2618.3,0.76373]
[1750056567092,30.6077,2618.4,2618.2,3.2078]
[1750056567497,1.40271377,2618.5,2618.2,3.2078]
[1750056567698,30.61372,2618.4,2618.3,0.76373]
[1750056568698,0.63902377,2618.5,2618.4,0.7637]
[1750056568699,0.00572377,2618.5,2618.4,0.7637]
[1750056568997,29.84072377,2618.5,2618.4,0.7637]
[1750056570297,30.60439377,2618.5,2618.3,0.76371]
[1750056570503,30.60439377,2618.5,2618.4,0.7637]
[1750056570800,29.84072377,2618.5,2618.1,0.76378]
[1750056571001,1.2805,2618.4,2618.0,1.50734456]
[1750056571197,0.76377,2618.2,2618.0,1.50734456]
[1750056571398,24.38377,2618.2,2618.0,0.7638]
[1750056571598,24.38377,2618.2,2618.1,0.76379]
[1750056572305,0.76377,2618.2,2618.1,0.76379]
[1750056572604,29.829,2618.2,2618.1,0.76379]
[1750056574305,30.59276,2618.2,2618.0,0.7638]
[1750056574506,0.76379,2618.1,2617.9,5.47897456]
[1750056574700,8.7929,2618.1,2618.0,0.76382]
[1750056574908,32.3959,2618.1,2618.0,0.76382]
[1750056575302,32.3959,2618.1,2617.9,0.76382]
[1750056575506,0.76382,2618.0,2617.9,0.76382]
[1750056575799,32.3959,2618.1,2617.7,2.91573456]
[1750056576005,2.04027,2617.9,2617.7,0.76389]
[1750056576310,23.604,2617.8,2617.7,0.76389]
[1750056576613,24.36788,2617.8,2617.6,5.47905456]
[1750056576804,23.604,2617.8,2617.7,0.7639]
[1750056577003,24.3679,2617.8,2617.6,4.71514456]
[1750056577205,1.2764,2617.9,2617.8,0.76387]
[1750056577406,29.808,2617.9,2617.8,0.76387]
[1750056578308,0.76388,2617.8,2617.7,0.76389]
[1750056578502,30.57186,2617.9,2617.8,0.76387]
[1750056579511,0.76383,2618.0,2617.9,0.76385]
[1750056579713,6.21,2618.0,2617.9,0.76385]
[1750056580006,30.55682,2618.0,2617.9,0.76385]
[1750056580210,29.793,2618.0,2617.9,0.76385]
[1750056580407,1.3075,2618.1,2618.0,0.76382]
[1750056580613,29.794,2618.2,2618.1,0.76379]
[1750056580614,6.21,2618.2,2618.1,0.76379]
[1750056580912,6.21,2618.4,2618.3,0.76372]
[1750056581114,29.801,2618.4,2618.1,0.76377]
[1750056581409,1.2996,2618.3,2618.1,0.76377]
[1750056581808,0.76376,2618.2,2618.1,0.76377]
[1750056582315,2.06335,2618.3,2618.2,0.76376]
[1750056582512,1.2996,2618.3,2618.2,0.76376]
[1750056582807,0.76372,2618.4,2618.2,0.76376]
[1750056583013,6.209,2618.4,2618.2,3.2078]
[1750056583205,29.804,2618.4,2618.3,0.76371]
[1750056583511,0.00572377,2618.5,2618.4,0.7637]
[1750056583712,29.80972377,2618.5,2618.4,0.7637]
[1750056584010,29.80872377,2618.5,2618.4,0.7637]
[1750056584405,6.21472377,2618.5,2618.4,0.7637]
[1750056584608,3.2078,2619.1,2618.5,0.76367]
[1750056584814,29.815,2619.0,2618.9,0.76355]
[1750056585003,30.57852,2619.0,2618.9,0.76355]
[1750056585203,29.815,2619.0,2618.6,4.71514456]
[1750056585523,0.76364,2618.6,2618.4,0.76368]
[1750056585812,6.209,2618.6,2618.3,0.6643]
[1750056586020,2.73198,2618.5,2618.3,1.42801]
[1750056586310,23.613,2618.4,2618.2,5.48460833]
[1750056586512,25.5697,2618.4,2618.2,3.97726377]
[1750056586706,0.76373,2618.3,2618.2,3.21352377]
[1750056586907,2.07703,2618.3,2618.2,0.00572377]
[1750056588716,2.07703,2618.3,2618.2,0.76948377]
[1750056589015,1.3133,2618.3,2618.2,0.76948377]
[1750056589206,29.82,2618.3,2618.2,0.76946377]
[1750056590616,30.4574,2618.4,2618.3,0.76373]
[1750056590812,31.2211,2618.4,2618.2,0.76946377]
[1750056591021,23.603,2618.3,2618.2,0.76946377]
[1750056591210,7.6161,2618.4,2618.3,0.76373]
[1750056591410,31.2191,2618.4,2618.3,0.76373]
[1750056592412,30.4554,2618.4,2618.2,0.76946377]
[1750056592617,0.76373,2618.3,2618.2,0.00572377]
[1750056592916,32.48262,2618.4,2618.2,0.00572377]
[1750056593418,31.7189,2618.4,2618.3,0.76373]
[1750056593612,30.4554,2618.4,2618.3,0.76373]
[1750056593813,1.4071,2618.4,2618.3,0.76373]
[1750056594009,0.6434,2618.4,2618.2,0.76946377]
[1750056594318,23.588,2618.3,2618.2,0.76946377]
[1750056594613,24.35173,2618.3,2618.2,0.00572377]
[1750056594818,0.76373,2618.3,2618.2,0.00572377]
[1750056595016,6.209,2618.3,2618.2,0.76948377]
[1750056595222,6.209,2618.3,2618.2,3.97728377]
[1750056595819,6.209,2618.3,2618.2,0.76948377]
[1750056596613,0.655,2618.5,2618.4,0.7637]
[1750056596822,30.455,2618.5,2618.4,0.7637]
[1750056597818,30.427,2618.5,2618.4,0.7637]
[1750056599516,30.421,2618.5,2618.4,0.7637]
[1750056600613,0.00572377,2618.8,2618.7,0.76361]
[1750056600815,0.00572377,2618.8,2618.7,5.47829694]
[1750056601013,0.00572377,2618.8,2618.7,7.58375793]
[1750056601212,23.102,2619.2,2619.1,0.7635]
[1750056601416,52.872,2619.2,2619.1,0.7635]
[1750056601620,23.102,2619.2,2619.1,0.7635]
[1750056601808,52.871,2619.2,2619.1,0.7635]
[1750056602215,0.76352,2619.1,2619.0,0.76353]
[1750056602414,54.92027,2619.2,2619.0,0.76353]
[1750056602818,54.1568,2619.2,2618.7,46.27789706]
[1750056603118,2.27478461,2619.1,2618.7,3.97141]
[1750056603322,24.8788,2619.0,2618.7,3.97141]
[1750056603512,1.41808,2618.9,2618.7,3.97141]
[1750056603712,31.82438,2618.8,2618.7,3.97141]
[1750056603908,31.82438,2618.8,2618.7,3.2078]
[1750056604118,31.0608,2618.8,2618.7,0.76361]
[1750056604516,31.82438,2618.8,2618.7,0.76361]
[1750056604916,0.76361,2618.7,2618.6,0.76362]
[1750056605118,31.0608,2618.8,2618.5,41.4302]
[1750056605319,31.8244,2618.8,2618.6,0.76362]
[1750056605625,31.0608,2618.8,2618.5,0.6302]
[1750056605818,0.76361,2618.7,2618.5,1.39386]
[1750056606018,23.582,2618.6,2618.4,3.97148]
[1750056606325,24.34566,2618.6,2618.4,3.97148]
[1750056606626,0.76367,2618.5,2618.4,3.9715]
[1750056606824,0.76367,2618.5,2618.4,3.2078]
[1750056606825,2.63457,2618.5,2618.4,3.2078]
[1750056607927,1.8709,2618.5,2618.4,3.9715]
[1750056608322,30.3813,2618.5,2618.4,3.9715]
[1750056609629,31.14497,2618.5,2618.4,3.9715]
[1750056609833,31.14497,2618.5,2618.4,3.2078]
[1750056610233,30.3813,2618.5,2618.4,3.9715]
[1750056610627,29.741,2618.5,2618.4,3.9715]
[1750056610824,1.87,2618.8,2618.7,0.76361]
[1750056611127,30.3644,2618.8,2618.7,0.76361]
[1750056611528,30.3644,2618.8,2618.5,1.50650706]
[1750056611736,0.76367,2618.5,2618.4,1.50650706]
[1750056611927,24.32667,2618.5,2618.3,2.27021706]
[1750056612131,24.32667,2618.5,2618.3,0.76371]
[1750056612332,23.563,2618.5,2618.4,0.7637]
[1750056612736,24.32667,2618.5,2618.4,0.7637]
[1750056613141,23.563,2618.5,2618.4,0.7637]
[1750056613644,24.32669,2618.5,2618.3,2.27021706]
[1750056614141,23.563,2618.5,2618.2,2.95117083]
[1750056614337,0.76372,2618.4,2618.2,2.95117083]
[1750056614737,25.64029,2618.5,2618.3,0.76373]
[1750056615042,6.181,2618.4,2618.2,2.18743083]
[1750056615240,6.181,2618.4,2618.3,0.76373]
[1750056615441,2.07729,2618.5,2618.4,0.7637]
[1750056615643,31.82729,2618.5,2618.4,0.7637]
[1750056615840,31.82729,2618.5,2618.3,0.76371]
[1750056616039,29.748,2618.4,2618.3,0.76373]
[1750056616645,29.748,2618.4,2618.2,2.95118083]
[1750056616646,30.5117,2618.4,2618.2,2.95118083]
[1750056616847,30.5117,2618.4,2618.3,0.76373]
[1750056617040,29.748,2618.4,2618.3,0.76373]
[1750056617547,30.4079,2618.4,2618.3,0.76373]
[1750056617743,31.1716,2618.4,2618.3,0.76373]
[1750056618138,30.4079,2618.4,2618.3,0.76373]
[1750056618344,0.6599,2618.4,2618.3,2.27023706]
[1750056618545,3.2078,2618.8,2618.6,0.76364]
[1750056618745,31.14351,2618.7,2618.6,0.76364]
[1750056618947,0.76364,2618.6,2618.4,0.76368]
[1750056619145,23.557,2618.5,2618.3,1.50650706]
[1750056619347,23.557,2618.5,2618.4,0.7637]
[1750056619547,24.32068,2618.5,2618.3,1.50650706]
[1750056619737,29.739,2618.4,2618.3,2.27021706]
[1750056620143,29.739,2618.4,2618.3,0.76371]
[1750056620440,31.0262,2618.4,2618.3,2.27021706]
[1750056620639,29.739,2618.4,2618.3,2.27021706]
[1750056621451,1.9281,2618.7,2618.6,0.76364]
[1750056621651,8.1101,2618.7,2618.6,0.76364]
[1750056621847,6.8229,2618.7,2618.6,0.76364]
[1750056622051,29.739,2618.7,2618.6,3.2078]
[1750056622350,29.739,2618.7,2618.6,5.47794706]
[1750056622743,29.739,2618.7,2618.6,6.15494706]
[1750056623749,0.6545,2618.9,2618.8,0.76358]
[1750056623949,23.557,2618.9,2618.8,0.76358]
[1750056624251,23.7353,2619.2,2619.1,0.7635]
[1750056624444,53.4743,2619.2,2619.1,0.7635]
[1750056624750,53.4743,2619.2,2618.9,4.71602583]
[1750056624942,0.76355,2618.9,2618.8,1.50822583]
[1750056625250,23.573,2618.9,2618.6,1.50822583]
[1750056625552,0.76367,2618.5,2618.4,1.50822583]
[1750056625742,0.76367,2618.5,2618.4,0.7637]
[1750056625743,24.34067,2618.5,2618.4,0.7637]
[1750056625947,24.34067,2618.5,2618.3,5.47973583]
[1750056626152,6.7986,2618.4,2618.3,5.47973583]
[1750056627151,6.7986,2618.4,2618.3,2.27193583]
[1750056627455,6.7986,2618.4,2618.3,0.76371]
[1750056628154,6.7986,2618.4,2618.3,2.27343278]
[1750056628354,6.7986,2618.4,2618.3,0.76371]